bitfinex/quotes_SOLUSD_20220226
["timestamp","ask_amount","ask_price","bid_price","bid_amount"]
[1645850376076,6.6489645,93.08,93.003,2.990189]
[1645850376276,14.56967485,93.08,93.003,2.990189]
[1645850376778,2.3499645,93.079,93.002,22.9216]
[1645850376975,4.299,93.078,93.002,22.9216]
[1645850377376,28.81618625,93.077,93.002,22.9216]
[1645850377578,4.299,93.076,93.002,22.9216]
[1645850377881,45.3348966,93.076,93.002,22.9216]
[1645850378075,28.81618625,93.075,93.002,22.9216]
[1645850378276,4.299,93.074,93.002,22.9216]
[1645850378476,16.1317,93.07,93.002,22.9216]
[1645850378678,28.0187,93.069,93.002,22.9216]
[1645850379078,42.58837485,93.069,93.002,22.9216]
[1645850379278,2.3499645,93.068,93.002,22.9216]
[1645850379478,4.299,93.067,93.002,22.9216]
[1645850379879,2.35028683,93.066,93.002,22.9216]
[1645850380080,4.299,93.065,93.002,22.9216]
[1645850380487,16.1337,93.06,93.0,100.0]
[1645850380684,4.299,93.059,93.0,100.0]
[1645850380885,18.90063789,93.059,93.0,100.0]
[1645850381084,30.12847386,93.058,93.0,100.0]
[1645850381284,4.299,93.057,93.0,100.0]
[1645850381484,18.90063789,93.057,93.0,100.0]
[1645850381686,30.12847386,93.056,93.0,100.0]
[1645850381884,45.45908804,93.054,93.0,100.0]
[1645850382285,34.42747386,93.053,93.0,100.0]
[1645850382486,16.1361,93.05,93.0,100.0]
[1645850382684,4.299,93.049,93.0,100.0]
[1645850382885,6.64928683,93.049,93.0,100.0]
[1645850383087,34.42747386,93.049,93.0,100.0]
[1645850383287,14.60163789,93.048,93.0,100.0]
[1645850383485,4.299,93.047,93.0,100.0]
[1645850383686,18.90063789,93.047,93.0,100.0]
[1645850383888,14.60163789,93.046,93.0,100.0]
[1645850384085,4.3,93.045,93.0,100.0]
[1645850384286,18.90163789,93.045,93.0,100.0]
[1645850384485,16.137,93.04,93.0,100.0]
[1645850386792,2.35028683,93.039,93.0,100.0]
[1645850387089,6.65028683,93.039,93.0,100.0]
[1645850387488,2.35028683,93.038,93.0,100.0]
[1645850391792,4.3,93.037,93.0,100.0]
[1645850391993,16.1386,93.03,93.0,100.0]
[1645850392193,4.3,93.029,93.0,100.0]
[1645850392395,6.65028683,93.029,93.0,100.0]
[1645850392793,2.35028683,93.028,93.0,100.0]
[1645850393796,16.1412,93.02,92.934,2.60683111]
[1645850393996,4.301,93.019,92.934,2.60683111]
[1645850394196,156.24434455,93.019,92.916,27.0681]
[1645850394397,107.6,93.009,92.917,22.755]
[1645850394597,156.09117618,93.007,92.918,4.68003434]
[1645850394798,137.92460506,93.006,92.918,4.68003434]
[1645850394997,1.66850402,93.005,92.918,4.68003434]
[1645850395197,4.301,93.004,92.918,4.68003434]
[1645850395397,107.6,92.999,92.918,4.68003434]
[1645850395599,107.6,92.997,92.917,22.755]
[1645850395803,113.42149923,92.996,92.917,22.755]
[1645850395998,1.67866628,92.995,92.917,22.755]
[1645850396200,4.303,92.994,92.917,22.755]
[1645850396400,107.6,92.992,92.887,4.303]
[1645850396601,107.6,92.989,92.86,15.51]
[1645850396806,109.47070652,92.979,92.861,4.303]
[1645850397002,107.6,92.969,92.862,22.6273]
[1645850397202,5.93784098,92.968,92.863,6.73417626]
[1645850397603,1.35112931,92.966,92.883,4.37674388]
[1645850397800,4.304,92.965,92.883,4.37674388]
[1645850398001,6.65428683,92.965,92.883,4.37674388]
[1645850398403,16.1542,92.96,92.883,4.37674388]
[1645850398601,4.304,92.959,92.883,4.37674388]
[1645850398801,6.65428683,92.959,92.883,4.37674388]
[1645850399000,12.28299177,92.958,92.883,4.37674388]
[1645850399201,4.304,92.957,92.883,4.37674388]
[1645850399404,6.65428683,92.957,92.883,4.37674388]
[1645850399603,2.35028683,92.956,92.883,4.37674388]
[1645850399802,4.304,92.955,92.883,4.37674388]
[1645850400203,16.1525,92.95,92.883,4.37674388]
[1645850402109,16.1525,92.95,92.863,6.73417626]
[1645850403305,16.1525,92.95,92.883,4.06410167]
[1645850403706,12.21971035,92.949,92.883,4.06410167]
[1645850403905,4.304,92.954,92.883,4.06410167]
[1645850404105,2.35024455,92.968,92.883,4.06410167]
[1645850404305,16.1668,92.971,92.883,4.06410167]
[1645850405907,4.303,92.97,92.883,4.06410167]
[1645850406511,20.4523,92.97,92.883,4.06410167]
[1645850406709,6.65324455,92.966,92.883,4.06410167]
[1645850406910,13.69324455,92.966,92.883,4.06410167]
[1645850407111,2.35024455,92.965,92.883,4.06410167]
[1645850407309,4.304,92.964,92.883,4.06410167]
[1645850407711,2.35024455,92.963,92.883,4.06410167]
[1645850407910,4.304,92.962,92.883,4.06410167]
[1645850408410,2.35024455,92.961,92.883,4.06410167]
[1645850408610,20.4548,92.96,92.883,4.06410167]
[1645850408815,20.4548,92.96,92.865,3.03165328]
[1645850409011,2.35024455,92.959,92.865,3.03165328]
[1645850409312,4.304,92.958,92.865,3.03165328]
[1645850409610,6.65424455,92.958,92.865,3.03165328]
[1645850409812,6.65424455,92.958,92.874,5.10309076]
[1645850410211,6.65424455,92.958,92.876,2.49922764]
[1645850415816,16.1525,92.95,92.876,2.49922764]
[1645850416015,4.304,92.949,92.876,2.49922764]
[1645850416215,6.64768741,92.949,92.876,2.49922764]
[1645850416417,2.34368741,92.948,92.876,2.49922764]
[1645850416715,16.1525,92.95,92.876,2.49922764]
[1645850417316,23.2282,92.949,92.876,2.49922764]
[1645850417516,4.304,92.948,92.876,2.49922764]
[1645850420521,23.2282,92.949,92.876,2.49922764]
[1645850422227,2.34188161,92.948,92.876,2.49922764]
[1645850423530,4.304,92.948,92.876,2.49922764]
[1645850424628,23.2282,92.949,92.876,2.49922764]
[1645850425851,2.34188161,92.96,92.876,2.49922764]
[1645850426251,24.1726,92.966,92.876,2.49922764]
[1645850429852,4.304,92.965,92.876,2.49922764]
[1645850430253,24.1726,92.966,92.876,2.49922764]
[1645850431854,4.304,92.965,92.876,2.49922764]
[1645850432056,23.2736,92.989,92.877,0.25]
[1645850432358,4.304,92.991,92.878,107.6]
[1645850432554,2.34188161,93.004,92.879,0.25]
[1645850432756,2.34188161,93.004,92.88,107.6]
[1645850432954,47.56114702,93.003,92.881,3.35586264]
[1645850433254,47.56114702,93.003,92.911,2.29562229]
[1645850433455,47.56114702,93.003,92.912,24.9105]
[1645850433656,47.56114702,93.003,92.913,2.96303802]
[1645850433857,4.303,93.002,92.913,2.96303802]
[1645850434258,47.56114702,93.003,92.914,4.303]
[1645850434659,49.90302863,93.003,92.914,4.303]
[1645850436361,49.90302863,93.003,92.914,7.3253838]
[1645850438263,4.301,93.002,92.914,3.0223838]
[1645850438665,2.34188161,93.001,92.914,3.0223838]
[1645850438865,4.303,93.0,92.914,3.0223838]
[1645850439368,2.34188161,92.999,92.914,3.0223838]
[1645850439568,4.303,92.998,92.914,3.0223838]
[1645850439970,2.34188161,92.997,92.914,3.0223838]
[1645850441969,2.34188161,92.997,92.912,24.9105]
[1645850442170,11.03188161,92.997,92.912,24.9105]
[1645850442573,2.34188161,92.996,92.912,24.9105]
[1645850442772,28.1133,92.995,92.912,24.9105]
[1645850443169,2.34188161,92.994,92.912,24.9105]
[1645850443370,4.303,92.993,92.912,24.9105]
[1645850443769,2.34188161,92.992,92.912,24.9105]
[1645850443971,4.303,92.991,92.912,24.9105]
[1645850444369,2.34188161,92.99,92.912,24.9105]
[1645850444570,4.303,92.989,92.912,24.9105]
[1645850444970,2.34188161,92.988,92.912,24.9105]
[1645850445173,4.303,92.987,92.912,24.9105]
[1645850445573,2.34188161,92.986,92.912,24.9105]
[1645850445771,4.303,92.985,92.912,24.9105]
[1645850448176,2.34188161,92.986,92.912,24.9105]
[1645850449278,2.34188161,92.986,92.913,2.48727552]
[1645850451078,23.8103,92.995,92.913,2.48727552]
[1645850452280,47.56114702,93.003,92.913,2.48727552]
[1645850453480,23.6841,93.002,92.913,2.48727552]
[1645850457182,4.303,93.001,92.913,2.48727552]
[1645850457383,23.6841,93.002,92.913,2.48727552]
[1645850459384,23.6841,93.002,92.913,107.6]
[1645850459586,23.6841,93.002,92.912,24.9105]
[1645850459587,47.56114702,93.003,92.915,107.6]
[1645850459791,47.56114702,93.003,92.916,3.3499047]
[1645850459987,47.56114702,93.003,92.917,107.6]
[1645850460188,15.9943,93.024,92.918,2.89923574]
[1645850460386,24.5135,93.023,92.92,123.7381]
[1645850460588,24.5135,93.023,92.921,2.95177001]
[1645850460792,24.5135,93.023,92.922,107.6]
[1645850460988,24.5135,93.023,92.924,107.6]
[1645850461192,24.5135,93.023,92.925,3.03371531]
[1645850461390,55.63586113,93.022,92.925,3.03371531]
[1645850461691,55.63586113,93.022,92.941,2.35424042]
[1645850461891,55.63586113,93.022,92.942,23.3426]
[1645850462192,4.301,93.028,92.943,2.85907198]
[1645850462392,23.8955,93.039,92.944,3.00748646]
[1645850462592,23.8955,93.039,92.95,16.1327]
[1645850462791,23.8955,93.039,92.951,110.3835833]
[1645850462991,23.8955,93.039,92.951,107.6]
[1645850463191,23.8955,93.039,92.953,107.6]
[1645850463595,23.8955,93.039,92.96,16.131]
[1645850463792,23.8955,93.039,92.961,23.7461]
[1645850463993,23.8955,93.039,92.962,2.52282639]
[1645850464194,4.301,93.069,92.962,2.52282639]
[1645850464394,24.6175,93.068,92.963,23.8838]
[1645850464694,4.3,93.067,92.965,2.8635924]
[1645850465096,57.63431478,93.066,92.965,2.8635924]
[1645850465296,57.63431478,93.066,92.972,2.7574785]
[1645850465697,57.63431478,93.066,92.974,107.6]
[1645850466016,57.63431478,93.066,92.977,3.11640229]
[1645850466216,57.63431478,93.066,92.978,4.3]
[1645850466416,57.63431478,93.066,92.978,7.16292427]
[1645850466617,57.63431478,93.066,92.981,2.79047978]
[1645850466818,57.63431478,93.066,92.982,4.299]
[1645850467016,57.63431478,93.066,92.982,7.16192427]
[1645850467717,57.63431478,93.066,92.99,16.126]
[1645850467918,57.63431478,93.066,92.991,7.15531685]
[1645850468520,57.63431478,93.066,92.993,2.73776644]
[1645850468718,57.63431478,93.066,92.994,4.299]
[1645850471121,57.63431478,93.066,92.994,6.86145616]
[1645850472821,4.299,93.086,92.995,107.6]
[1645850473021,23.2619,93.11,93.001,107.6]
[1645850473220,23.2619,93.11,93.003,107.6]
[1645850473421,23.2619,93.11,93.005,107.6]
[1645850473624,23.2619,93.11,93.007,107.6]
[1645850473824,51.20939929,93.109,93.008,30.13525305]
[1645850474020,51.20939929,93.109,93.009,3.07037902]
[1645850474219,51.20939929,93.109,93.011,107.6]
[1645850474420,73.88749929,93.109,93.013,107.6]
[1645850474619,73.88749929,93.109,93.015,107.6]
[1645850474820,78.18549929,93.109,93.016,2.88736872]
[1645850475022,78.18549929,93.109,93.011,2.76195699]
[1645850475822,1.41539287,93.108,93.011,2.76195699]
[1645850477623,78.18549929,93.109,93.011,2.76195699]
[1645850477823,30.47471526,93.108,93.012,4.298]
[1645850478024,1.75478048,93.107,93.012,4.298]
[1645850478622,26.39456828,93.107,93.012,4.298]
[1645850478823,1.75482169,93.106,93.012,4.298]
[1645850480824,1.75482169,93.106,93.011,7.05995699]
[1645850481827,15.35810959,93.105,93.011,7.05995699]
[1645850483427,2.34182917,93.104,93.011,7.05995699]
[1645850483628,2.34182917,93.104,93.011,2.76195699]
[1645850485227,24.6397878,93.103,93.011,2.76195699]
[1645850485627,26.98161697,93.103,93.011,2.76195699]
[1645850486032,4.298,93.102,93.011,2.76195699]
[1645850486328,5.77570668,93.102,93.008,23.4209]
[1645850486529,1.5249971,93.1,92.978,4.298]
[1645850486731,1.5249971,93.1,92.858,7.0]
[1645850486732,4.299,93.099,92.979,23.0649]
[1645850486933,107.6,93.098,92.979,23.0649]
[1645850487130,5.90822563,93.097,92.979,23.0649]
[1645850487328,1.3612963,93.096,92.979,23.0649]
[1645850487529,50.04757762,93.079,92.979,23.0649]
[1645850487728,5.72426956,93.078,92.979,23.0649]
[1645850487928,3.76709873,93.078,92.98,4.299]
[1645850488129,19.15684902,93.078,92.98,4.299]
[1645850488331,8.17847463,93.077,92.979,23.0649]
[1645850488731,2.34182917,93.076,92.979,23.0649]
[1645850488932,4.299,93.075,92.979,23.0649]
[1645850489329,2.34182917,93.074,92.979,23.0649]
[1645850489533,4.299,93.073,92.979,23.0649]
[1645850489930,2.34182917,93.072,92.979,23.0649]
[1645850490131,4.299,93.071,92.979,23.0649]
[1645850490331,16.1318,93.07,92.979,23.0649]
[1645850490631,5.99420254,93.069,92.979,23.0649]
[1645850490830,1.8127528,93.067,92.979,23.0649]
[1645850491032,4.3,93.066,92.979,23.0649]
[1645850491231,11.14,93.066,92.979,23.0649]
[1645850491432,16.1336,93.06,92.979,23.0649]
[1645850491633,4.3,93.059,92.979,23.0649]
[1645850491834,5.70430899,93.059,92.979,23.0649]
[1645850492035,8.04613816,93.059,92.979,23.0649]
[1645850492236,2.34182917,93.058,92.979,23.0649]
[1645850492437,16.1353,93.05,92.971,4.299]
[1645850492839,62.18563233,93.049,92.971,4.299]
[1645850493139,1.39432821,93.048,92.971,4.299]
[1645850495655,60.42653825,93.049,92.971,4.299]
[1645850497460,1.47391058,93.048,92.971,4.299]
[1645850499160,60.42653825,93.049,92.971,4.299]
[1645850499361,60.42653825,93.049,92.972,2.86292427]
[1645850499561,60.42653825,93.049,92.974,2.35786059]
[1645850499970,60.42653825,93.049,92.976,2.33203845]
[1645850500469,60.42653825,93.049,92.98,16.1277]
[1645850500867,60.42653825,93.049,92.981,2.65718789]
[1645850501068,4.3,93.076,92.981,2.65718789]
[1645850501369,1.5087061,93.077,92.981,2.65718789]
[1645850502169,54.96002773,93.056,92.981,2.65718789]
[1645850512805,63.29002773,93.056,92.981,2.65718789]
[1645850513000,63.29002773,93.056,92.976,3.06012654]
[1645850525312,54.96002773,93.056,92.976,3.06012654]
[1645850534747,54.96002773,93.056,92.976,110.66012654]
[1645850534945,54.96002773,93.056,92.977,2.52915988]
[1645850538854,1.59460982,93.055,92.975,24.9389]
[1645850539054,5.89460982,93.055,92.975,24.9389]
[1645850539256,1.59460982,93.055,92.975,24.9389]
[1645850539458,54.96002773,93.056,92.975,24.9389]
[1645850539863,54.96002773,93.056,92.976,2.79821742]
[1645850540057,54.96002773,93.056,92.975,24.9389]
[1645850540256,13.79810959,93.075,92.975,24.9389]
[1645850540659,13.79810959,93.075,92.976,2.86292427]
[1645850540858,13.79810959,93.075,92.976,5.61133442]
[1645850541260,47.73530034,93.056,92.976,5.61133442]
[1645850542162,4.3,93.074,92.976,113.21133442]
[1645850542361,4.3,93.074,92.977,2.4462265]
[1645850542562,4.3,93.074,92.977,5.30915077]
[1645850542963,4.3,93.074,92.978,2.86292427]
[1645850543164,58.67638957,93.058,92.978,2.86292427]
[1645850544166,4.3,93.074,92.978,2.86292427]
[1645850544364,4.3,93.074,92.981,107.6]
[1645850544565,4.3,93.091,92.983,107.6]
[1645850544783,24.8925,93.078,92.984,2.55037652]
[1645850544984,24.8925,93.078,92.985,111.899]
[1645850545184,24.8925,93.078,92.986,2.89748119]
[1645850545384,24.8925,93.078,92.988,107.6]
[1645850545586,24.8925,93.078,92.991,107.6]
[1645850545786,24.8925,93.078,92.993,107.6]
[1645850545986,24.8925,93.078,92.995,107.6]
[1645850546188,24.8925,93.078,92.996,114.89319755]
[1645850546387,24.8925,93.078,92.997,2.93690205]
[1645850546591,24.8925,93.078,93.0,16.1244]
[1645850546793,4.299,93.113,93.001,114.60027865]
[1645850546990,22.6852,93.109,93.002,3.06170585]
[1645850547190,22.6852,93.109,93.003,111.898]
[1645850547394,10.88879322,93.108,93.004,2.64284386]
[1645850547690,70.6698058,93.108,93.006,107.6]
[1645850547890,10.88879322,93.108,93.007,6.70819811]
[1645850548092,10.88879322,93.108,93.007,24.45698617]
[1645850548293,10.88879322,93.108,93.008,20.75413278]
[1645850548496,10.88879322,93.108,93.02,16.1211]
[1645850548693,10.88879322,93.108,93.021,26.88558484]
[1645850548895,53.38980731,93.107,93.022,2.45323402]
[1645850549295,53.38980731,93.107,93.022,110.05323402]
[1645850549494,53.38980731,93.107,93.023,2.72646989]
[1645850549900,53.38980731,93.107,93.024,4.298]
[1645850550298,15.34385283,93.106,93.021,24.6336]
[1645850550501,1.47998594,93.105,93.021,24.6336]
[1645850550704,53.38980731,93.107,93.022,2.69335659]
[1645850551202,53.38980731,93.107,93.023,4.298]
[1645850551602,53.38980731,93.107,93.023,6.71251085]
[1645850553203,12.43331891,93.106,93.023,6.71251085]
[1645850554506,12.43331891,93.106,93.023,2.41451085]
[1645850557208,12.43331891,93.106,93.021,24.6336]
[1645850557410,1.49972296,93.105,93.021,24.6336]
[1645850566423,53.38980731,93.107,93.022,107.6]
[1645850566624,53.38980731,93.107,93.023,2.2664085]
[1645850567123,53.38980731,93.107,93.024,2.86292427]
[1645850568526,53.38980731,93.107,93.03,16.1191]
[1645850571046,1.44494966,93.106,93.03,16.1191]
[1645850574651,53.38980731,93.107,93.03,16.1191]
[1645850575853,53.38980731,93.107,93.021,24.6336]
[1645850577253,53.38980731,93.107,93.022,7.16092427]
[1645850577656,53.38980731,93.107,93.023,2.86292427]
[1645850579055,53.38980731,93.107,93.024,4.298]
[1645850579254,6.06475204,93.106,92.997,23.6277]
[1645850579453,31.65564046,93.106,92.997,23.6277]
[1645850579653,29.88888842,93.106,92.997,23.6277]
[1645850579855,39.38899801,93.105,92.997,23.6277]
[1645850580056,5.66123061,93.104,92.997,23.6277]
[1645850580257,16.1267,93.1,92.997,23.6277]
[1645850580454,5.82335137,93.099,92.997,23.6277]
[1645850580656,1.55467663,93.097,92.997,23.6277]
[1645850580855,4.298,93.096,92.997,23.6277]
[1645850581056,18.09610959,93.096,92.997,23.6277]
[1645850581255,2.85559589,93.095,92.997,23.6277]
[1645850581454,4.298,93.094,92.997,23.6277]
[1645850581655,5.95763126,93.094,92.997,23.6277]
[1645850582054,1.36479068,93.093,92.997,23.6277]
[1645850582254,4.298,93.092,92.997,23.6277]
[1645850582455,16.1292,93.09,92.997,23.6277]
[1645850582656,1.707912,93.089,92.997,23.6277]
[1645850583256,4.299,93.088,92.997,23.6277]
[1645850585060,6.006912,93.089,92.997,23.6277]
[1645850586866,1.707912,93.089,92.997,23.6277]
[1645850591972,6.006912,93.089,92.997,23.6277]
[1645850595274,1.707912,93.089,92.997,23.6277]
[1645850598302,6.006912,93.089,92.997,23.6277]
[1645850599306,1.707912,93.089,92.997,23.6277]
[1645850601409,4.299,93.088,92.997,23.6277]
[1645850602509,16.1299,93.08,92.997,23.6277]
[1645850602708,24.72,93.079,92.997,23.6277]
[1645850602909,56.96451515,93.078,92.997,23.6277]
[1645850605513,73.41421515,93.078,92.997,23.6277]
[1645850609518,73.41421515,93.078,92.981,17.59661046]
[1645850609519,16.1316,93.07,92.981,17.59661046]
[1645850609717,5.91142163,93.069,92.982,24.1743]
[1645850609920,1.61242163,93.069,92.982,24.1743]
[1645850610121,4.299,93.068,92.982,24.1743]
[1645850610320,22.7418,93.067,92.982,24.1743]
[1645850610519,5.66381673,93.066,92.982,24.1743]
[1645850610720,16.1337,93.06,92.982,24.1743]
[1645850634769,1.51886332,93.059,92.982,24.1743]
[1645850639571,1.51886332,93.059,92.982,24.19968363]
[1645850641276,16.1337,93.06,92.982,24.19968363]
[1645850644082,16.1337,93.06,92.983,2.77618311]
[1645850645289,24.6506,93.066,92.983,2.77618311]
[1645850645793,24.6506,93.066,92.982,0.02538363]
[1645850645992,119.93098136,93.065,92.982,0.02538363]
[1645850646191,1.45239566,93.064,92.982,0.00538363]
[1645850646491,107.6,93.059,92.982,0.00538363]
[1645850646691,107.6,93.057,92.982,0.00538363]
[1645850646890,5.84473641,93.058,92.982,0.00538363]
[1645850646891,107.6,93.055,92.982,0.00538363]
[1645850647090,107.6,93.053,92.982,0.00538363]
[1645850647291,1.37150296,93.052,92.982,0.00538363]
[1645850647491,107.6,93.039,92.982,0.00538363]
[1645850647691,1.36268306,93.037,92.982,0.00538363]
[1645850648094,1.41996538,93.035,92.982,0.00538363]
[1645850648294,1.54696918,93.033,92.982,0.00538363]
[1645850648493,4.3,93.032,92.982,0.00538363]
[1645850648898,2.34191833,93.031,92.982,0.00538363]
[1645850649095,4.3,93.03,92.982,0.00538363]
[1645850649295,113.49613282,93.03,92.982,0.00538363]
[1645850649494,4.16068503,93.029,92.982,0.00538363]
[1645850649696,107.6,93.028,92.982,0.00538363]
[1645850649902,1.37050089,93.027,92.982,0.00538363]
[1645850650101,28.0969,93.026,92.982,0.00538363]
[1645850650300,1.86482348,93.025,92.982,0.00538363]
[1645850650500,4.3,93.024,92.982,0.00538363]
[1645850651401,15.16290027,93.023,92.982,0.00538363]
[1645850651604,16.1431,93.02,92.982,0.00538363]
[1645850651803,4.301,93.019,92.982,0.00538363]
[1645850653902,2.34191833,93.018,92.982,0.00538363]
[1645850654104,4.301,93.017,92.982,0.00538363]
[1645850655206,2.34191833,93.016,92.982,0.00538363]
[1645850655404,16.1436,93.01,92.982,0.00538363]
[1645850656006,22.5184,93.009,92.982,0.00538363]
[1645850661812,115.87912511,93.008,92.982,0.00538363]
[1645850662011,1.70890634,93.007,92.982,0.00538363]
[1645850662216,4.301,93.006,92.982,0.00538363]
[1645850662411,6.12950148,93.006,92.982,0.00538363]
[1645850662611,8.47141981,93.006,92.982,0.00538363]
[1645850662812,1.73717303,93.004,92.982,0.00538363]
[1645850663011,4.301,93.003,92.982,0.00538363]
[1645850663212,32.23370389,93.003,92.982,0.00538363]
[1645850663611,107.6,92.999,92.982,0.00538363]
[1645850663811,22.9998,92.998,92.982,0.00538363]
[1645850664113,4.301,92.997,92.982,0.00538363]
[1645850664314,22.9998,92.998,92.982,0.00538363]
[1645850664613,2.34191833,92.997,92.982,0.00538363]
[1645850666014,17.5048186,92.997,92.982,0.00538363]
[1645850666820,107.6,92.996,92.982,0.00538363]
[1645850667217,58.8974604,92.994,92.982,0.00538363]
[1645850667516,4.301,92.993,92.982,0.00538363]
[1645850667718,6.64291833,92.993,92.982,0.00538363]
[1645850667917,2.34191833,92.992,92.982,0.00538363]
[1645850668118,4.301,92.991,92.982,0.00538363]
[1645850668416,4.29335622,92.99,92.982,0.00538363]
[1645850668618,4.301,92.989,92.982,0.00538363]
[1645850668818,6.64291833,92.989,92.982,0.00538363]
[1645850669018,4.301,92.989,92.982,0.00538363]
[1645850669220,2.34191833,92.988,92.982,0.00538363]
[1645850669621,17.5048186,92.988,92.982,0.00538363]
[1645850669825,24.3614,92.987,92.982,0.00538363]
[1645850670022,26.70331833,92.987,92.982,0.00538363]
[1645850670223,2.34191833,92.986,92.982,0.00538363]
[1645850670725,4.301,92.985,92.982,0.00538363]
[1645850671126,2.34191833,92.984,92.982,0.00538363]
[1645850671323,4.301,92.983,92.982,0.00538363]
[1645850671725,6.64291833,92.983,92.982,0.00538363]
[1645850672932,21.8058186,92.983,92.982,0.00538363]
[1645850673830,17.5048186,92.983,92.982,0.00538363]
[1645850674630,43.09560416,92.983,92.982,0.00538363]
[1645850675028,47.39660416,92.983,92.982,0.00538363]
[1645850675429,154.99660416,92.983,92.982,0.00538363]
[1645850676529,47.39660416,92.983,92.982,0.00538363]
[1645850676934,58.41858502,92.983,92.982,0.00538363]
[1645850682936,2.34191833,92.983,92.982,0.00538363]
[1645850683139,24.3614,92.987,92.982,0.00538363]
[1645850685759,38.18308292,92.987,92.982,0.00538363]
[1645850696883,24.3614,92.987,92.982,0.00538363]
[1645850702908,1.95143789,92.99,92.982,0.00538363]
[1645850713322,1.95143789,92.99,92.925,3.01616096]
[1645850713723,1.95143789,92.99,92.926,2.86292427]
[1645850724743,1.95143789,92.99,92.925,3.01616096]
[1645850724938,7.90143789,92.99,92.925,3.01616096]
[1645850725141,13.84161626,92.989,92.924,23.8617]
[1645850725438,36.75181626,92.989,92.924,23.8617]
[1645850726344,36.75181626,92.989,92.914,2.71004591]
[1645850726542,2.34218219,92.988,92.896,2.68957078]
[1645850726742,4.303,92.987,92.896,2.68957078]
[1645850727141,2.34218219,92.986,92.896,2.68957078]
[1645850727340,16.18379845,92.986,92.896,2.68957078]
[1645850727748,2.34218219,92.985,92.896,2.68957078]
[1645850727941,4.303,92.984,92.896,2.68957078]
[1645850728343,2.34218219,92.983,92.896,2.68957078]
[1645850730949,123.7487,92.98,92.895,24.1353]
[1645850731154,123.7487,92.98,92.86,16.1487]
[1645850731155,107.6,92.978,92.872,2.70674074]
[1645850731354,107.6,92.976,92.873,23.0675]
[1645850731553,56.91755158,92.974,92.874,2.89898234]
[1645850731750,4.303,92.973,92.874,2.89898234]
[1645850731950,18.14461626,92.973,92.874,2.89898234]
[1645850732152,2.34218219,92.972,92.874,2.89898234]
[1645850732351,4.303,92.971,92.874,2.89898234]
[1645850732751,2.34218219,92.97,92.874,2.89898234]
[1645850732952,4.303,92.969,92.874,2.89898234]
[1645850733352,2.34218219,92.968,92.874,2.89898234]
[1645850733553,16.1517,92.96,92.874,2.89898234]
[1645850733751,23.523,92.959,92.874,2.89898234]
[1645850734350,13.84161626,92.958,92.874,2.89898234]
[1645850735154,16.1537,92.95,92.863,4.301]
[1645850735354,5.68915196,92.949,92.863,4.301]
[1645850735560,8.03133415,92.949,92.863,4.301]
[1645850735753,13.84161626,92.948,92.863,4.301]
[1645850735955,5.77178692,92.947,92.864,4.96782483]
[1645850736174,107.6,92.943,92.864,4.96782483]
[1645850736377,4.305,92.942,92.864,4.96782483]
[1645850736580,16.1569,92.93,92.864,4.96782483]
[1645850736976,24.2801,92.929,92.864,4.96782483]
[1645850742680,24.2801,92.929,92.863,4.301]
[1645850744795,3.71810905,92.928,92.843,23.6684]
[1645850745186,107.6,92.926,92.843,23.6684]
[1645850745385,1.67980686,92.925,92.843,23.6684]
[1645850745587,4.02198905,92.925,92.843,23.6684]
[1645850745888,2.34218219,92.924,92.843,23.6684]
[1645850746287,123.7586,92.92,92.843,23.6684]
[1645850746688,2.34218219,92.919,92.843,23.6684]
[1645850746889,4.306,92.918,92.843,23.6684]
[1645850747289,25.61658219,92.917,92.843,23.6684]
[1645850747491,58.58262854,92.916,92.843,23.6684]
[1645850747689,60.92481073,92.916,92.843,23.6684]
[1645850747888,2.34218219,92.915,92.843,23.6684]
[1645850748292,16.1607,92.91,92.811,2.4545295]
[1645850748490,4.307,92.909,92.812,23.4716]
[1645850748690,109.3363011,92.908,92.812,23.4716]
[1645850748889,107.6,92.906,92.814,4.14195854]
[1645850749090,107.6,92.904,92.814,4.14195854]
[1645850749290,107.6,92.902,92.814,4.14195854]
[1645850749492,4.307,92.901,92.814,4.14195854]